lending/lending_fUSD_20240928
["ID","MTS","AMOUNT","RATE_DAILY","PERIOD"]
[339369744,1727495435479,-500.0,0.00012876,2]
[339369745,1727495435489,-500.0,0.00012876,2]
[339369746,1727495435499,-500.0,0.00012876,2]
[339369747,1727495435508,-500.0,0.00012876,2]
[339369748,1727495435518,-500.0,0.00012876,2]
[339369749,1727495435527,-500.0,0.00012876,2]
[339369750,1727495435538,-500.0,0.00012876,2]
[339369751,1727495435548,-500.0,0.00012876,2]
[339369752,1727495435559,-66.68469638,0.00012876,2]
[339369753,1727495438200,-433.31530362,0.00012876,2]
[339369754,1727495438210,-90.01084009,0.00012876,2]
[339369755,1727495438353,-310.24010705,0.00012876,2]
[339369756,1727495438365,-99.74905286,0.00012876,2]
[339369757,1727495438376,-500.0,0.00012876,2]
[339369758,1727495438386,-500.0,0.00012876,2]
[339369759,1727495438396,-500.0,0.00012876,2]
[339369760,1727495438406,-500.0,0.00012876,2]
[339369761,1727495438416,-500.0,0.00012876,2]
[339369762,1727495438427,-500.0,0.00012876,2]
[339369763,1727495438436,-500.0,0.00012876,2]
[339369764,1727495438446,-500.0,0.00012876,2]
[339369765,1727495438456,-500.0,0.00012876,2]
[339369766,1727495438466,-500.0,0.00012876,2]
[339369767,1727495438475,-500.0,0.00012876,2]
[339369768,1727495438485,-500.0,0.00012876,2]
[339369769,1727495438494,-500.0,0.00012876,2]
[339369770,1727495438503,-518.32076617,0.00012876,2]
[339369771,1727495438513,-500.0,0.00012876,2]
[339369772,1727495438523,-500.0,0.00012876,2]
[339369773,1727495438532,-500.0,0.00012876,2]
[339369774,1727495438541,-500.0,0.00012876,2]
[339369775,1727495438552,-500.0,0.00012876,2]
[339369776,1727495438562,-500.0,0.00012876,2]
[339369777,1727495438571,-500.0,0.00012876,2]
[339369778,1727495438581,-501.02049186,0.00012876,2]
[339369779,1727495438590,-2309.56,0.00012876,2]
[339369780,1727495438599,-2309.56,0.00012876,2]
[339369781,1727495438609,-2309.56,0.00012876,2]
[339369782,1727495438619,-2309.56,0.00012876,2]
[339369783,1727495438628,-2309.56,0.00012876,2]
[339369784,1727495438638,-2309.56,0.00012876,2]
[339369785,1727495438647,-2309.56,0.00012876,2]
[339369786,1727495438656,-2309.56,0.00012876,2]
[339369787,1727495438665,-2309.56,0.00012876,2]
[339369788,1727495438674,-2309.56,0.00012876,2]
[339369789,1727495438684,-2309.56,0.00012876,2]
[339369790,1727495438694,-2309.56,0.00012876,2]
[339369792,1727495438703,-2309.56,0.00012876,2]
[339369793,1727495438712,-2309.56,0.00012876,2]
[339369794,1727495438721,-1664.59950765,0.00012876,2]
[339369795,1727495438733,-275.96458678,0.00012876,2]
[339369796,1727495438749,-368.99590557,0.00012876,2]
[339369797,1727495438758,-2364.26,0.00012876,2]
[339369798,1727495438767,-862.82475187,0.00012876,2]
[339369799,1727495438779,-1501.43524813,0.00012876,2]
[339369801,1727495438789,-2364.26,0.00012876,2]
[339369802,1727495438798,-2364.26,0.00012876,2]
[339369804,1727495438807,-2364.26,0.00012876,2]
[339369805,1727495438817,-2364.26,0.00012876,2]
[339369806,1727495438826,-2364.26,0.00012876,2]
[339369807,1727495438836,-2364.26,0.00012876,2]
[339369808,1727495438845,-2364.26,0.00012876,2]
[339369809,1727495438854,-2364.26,0.00012876,2]
[339369810,1727495438863,-2364.26,0.00012876,2]
[339369811,1727495438873,-2364.26,0.00012876,2]
[339369812,1727495438883,-2364.26,0.00012876,2]
[339369813,1727495438893,-1987.30185214,0.00012876,2]
[339369814,1727495438905,-376.95814786,0.00012876,2]
[339369815,1727495438917,-1449.24137627,0.00012876,2]
[339369816,1727495438932,-770.28030709,0.00012876,2]
[339369819,1727495440423,-144.73831664,0.00012876,2]
[339369820,1727495440434,-672.53992661,0.00012876,2]
[339369821,1727495440446,-993.76,0.00012876,2]
[339369841,1727495443562,-2716.87,0.0001208,2]
[339369842,1727495443573,-457.98,0.00012876,2]
[339369843,1727495443652,-514.67007339,0.00012876,2]
[339369844,1727495443661,-40.88882961,0.00012876,2]
[339369845,1727495443673,-2598.06117039,0.00012876,2]
[339369846,1727495443682,-781.58670679,0.00012876,2]
[339369847,1727495443830,-1857.36329321,0.00012876,2]
[339369848,1727495443842,-2638.95,0.00012876,2]
[339369849,1727495443852,-2638.95,0.00012876,2]
[339369850,1727495443862,-2638.95,0.00012876,2]
[339369851,1727495443871,-2638.95,0.00012876,2]
[339369852,1727495443881,-2638.95,0.00012876,2]
[339369853,1727495443890,-2638.95,0.00012876,2]
[339369854,1727495443899,-2638.95,0.00012876,2]
[339369855,1727495443909,-2638.95,0.00012876,2]
[339369856,1727495443918,-2638.95,0.00012876,2]
[339369857,1727495443928,-2638.95,0.00012876,2]
[339369858,1727495443937,-2638.95,0.00012876,2]
[339369859,1727495443947,-2638.95,0.00012876,2]
[339369860,1727495443956,-966.61,0.00012876,2]
[339369861,1727495443966,-966.61,0.00012876,2]
[339369862,1727495443975,-966.61,0.00012876,2]
[339369864,1727495443985,-966.61,0.00012876,2]
[339369866,1727495443994,-966.61,0.00012876,2]
[339369867,1727495444005,-966.61,0.00012876,2]
[339369868,1727495444015,-966.61,0.00012876,2]
[339369870,1727495444027,-966.61,0.00012876,2]
[339369871,1727495444037,-966.61,0.00012876,2]
[339369872,1727495444048,-966.61,0.00012876,2]
[339369874,1727495444057,-966.61,0.00012876,2]
[339369876,1727495444068,-966.61,0.00012876,2]
[339369877,1727495444077,-966.61,0.00012876,2]
[339369878,1727495444086,-966.61,0.00012876,2]
[339369879,1727495444095,-966.61,0.00012876,2]
[339369880,1727495444105,-501.27913264,0.00012876,2]
[339369881,1727495444115,-500.0,0.00012876,2]
[339369882,1727495444124,-500.0,0.00012876,2]
[339369883,1727495444133,-500.0,0.00012876,2]
[339369884,1727495444142,-500.0,0.00012876,2]
[339369885,1727495444152,-500.0,0.00012876,2]
[339369886,1727495444161,-307.56855105,0.00012876,2]
[339369887,1727495444172,-500.0,0.00012876,2]
[339369888,1727495444181,-500.0,0.00012876,2]
[339369889,1727495444191,-500.0,0.00012876,2]
[339369890,1727495444201,-500.0,0.00012876,2]
[339369891,1727495444211,-500.0,0.00012876,2]
[339369892,1727495444222,-500.0,0.00012876,2]
[339369894,1727495444232,-500.0,0.00012876,2]
[339369895,1727495444242,-500.0,0.00012876,2]
[339369896,1727495444253,-500.0,0.00012876,2]
[339369897,1727495444263,-500.0,0.00012876,2]
[339369898,1727495444273,-299.73789027,0.00012876,2]
[339369899,1727495444283,-628.6,0.00012876,2]
[339369900,1727495444292,-628.6,0.00012876,2]
[339369901,1727495444303,-628.6,0.00012876,2]
[339369902,1727495444312,-628.6,0.00012876,2]
[339369903,1727495444321,-628.6,0.00012876,2]
[339369904,1727495444331,-628.6,0.00012876,2]
[339369905,1727495444341,-628.6,0.00012876,2]
[339369906,1727495444351,-628.6,0.00012876,2]
[339369907,1727495444361,-628.6,0.00012876,2]
[339369908,1727495444370,-628.6,0.00012876,2]
[339369909,1727495444380,-628.6,0.00012876,2]
[339369910,1727495444390,-628.6,0.00012876,2]
[339369911,1727495444400,-628.6,0.00012876,2]
[339369912,1727495444410,-628.6,0.00012876,2]
[339369913,1727495444420,-628.6,0.00012876,2]
[339369914,1727495444431,-500.0,0.00012899,2]
[339369915,1727495444440,-528.01790732,0.00012899,2]
[339369916,1727495444449,-500.0,0.00012899,2]
[339369917,1727495444458,-500.0,0.00012899,2]
[339369918,1727495444467,-500.0,0.00012899,2]
[339369919,1727495444476,-500.0,0.00012899,2]
[339369920,1727495444485,-308.25486155,0.00012899,2]
[339369921,1727495444495,-619.35,0.00012899,2]
[339369922,1727495444505,-619.35,0.00012899,2]
[339369923,1727495444514,-619.35,0.00012899,2]
[339369924,1727495444523,-619.35,0.00012899,2]
[339369925,1727495444533,-619.35,0.00012899,2]
[339369926,1727495444542,-619.35,0.00012899,2]
[339369927,1727495444551,-619.35,0.00012899,2]
[339369928,1727495444561,-619.35,0.00012899,2]
[339369929,1727495444571,-619.42103275,0.00012899,2]
[339369930,1727495444583,-579.87,0.00012899,2]
[339369931,1727495444596,-579.87,0.00012899,2]
[339369932,1727495444607,-579.87,0.00012899,2]
[339369933,1727495444620,-579.87,0.00012899,2]
[339369934,1727495444630,-579.87,0.00012899,2]
[339369935,1727495444643,-579.87,0.00012899,2]
[339369936,1727495444655,-579.87,0.00012899,2]
[339369937,1727495444667,-376.51854184,0.00012899,2]
[339369938,1727495444680,-203.35145816,0.00012899,2]
[339369939,1727495444689,-579.93720299,0.00012899,2]
[339369940,1727495444699,-616.79,0.00012899,2]
[339369941,1727495444708,-616.79,0.00012899,2]
[339369942,1727495444719,-616.79,0.00012899,2]
[339369943,1727495444729,-616.79,0.00012899,2]
[339369944,1727495444740,-616.79,0.00012899,2]
[339369945,1727495444750,-616.79,0.00012899,2]
[339369946,1727495444759,-528.21442753,0.00012899,2]
[339369947,1727495446257,-88.57557247,0.00012899,2]
[339369948,1727495446268,-616.79,0.00012899,2]
[339369949,1727495446277,-498.12569553,0.00012899,2]
[339369950,1727495454490,-118.90280211,0.00012899,2]
[339369951,1727495454501,-500.0,0.00012899,2]
[339369952,1727495454511,-500.0,0.00012899,2]
[339369953,1727495454521,-500.0,0.00012899,2]
[339369954,1727495454531,-500.0,0.00012899,2]
[339369955,1727495454543,-500.0,0.00012899,2]
[339369956,1727495454553,-500.0,0.00012899,2]
[339369957,1727495454563,-500.0,0.00012899,2]
[339369958,1727495454573,-258.81077,0.00012899,2]
[339369959,1727495454584,-2309.56,0.00012899,2]
[339369960,1727495454596,-2309.56,0.00012899,2]
[339369961,1727495454607,-2309.56,0.00012899,2]
[339369962,1727495454619,-2309.56,0.00012899,2]
[339369963,1727495454631,-2309.56,0.00012899,2]
[339369964,1727495454641,-2309.56,0.00012899,2]
[339369965,1727495454652,-2309.56,0.00012899,2]
[339369966,1727495454663,-2309.56,0.00012899,2]
[339369967,1727495454673,-2309.66147631,0.00012899,2]
[339369968,1727495454682,-2364.26,0.00012899,2]
[339369969,1727495454691,-2364.26,0.00012899,2]
[339369970,1727495454701,-2364.26,0.00012899,2]
[339369971,1727495454711,-2364.26,0.00012899,2]
[339369972,1727495454722,-2364.26,0.00012899,2]
[339369973,1727495454732,-2364.26,0.00012899,2]
[339369974,1727495454743,-2364.26,0.00012899,2]
[339369975,1727495454755,-2364.26,0.00012899,2]
[339369976,1727495454764,-2364.35446362,0.00012899,2]
[339369977,1727495454774,-2638.95,0.00012899,2]
[339369978,1727495454785,-2638.95,0.00012899,2]
[339369979,1727495454796,-2638.95,0.00012899,2]
[339369980,1727495454807,-2638.95,0.00012899,2]
[339369981,1727495454818,-2638.95,0.00012899,2]
[339369982,1727495454827,-2638.95,0.00012899,2]
[339369983,1727495454839,-2638.95,0.00012899,2]
[339369984,1727495454850,-2638.95,0.00012899,2]
[339369985,1727495454861,-2639.08098579,0.00012899,2]
[339369986,1727495454871,-966.61,0.00012899,2]
[339369987,1727495454880,-966.61,0.00012899,2]
[339369988,1727495454890,-966.61,0.00012899,2]
[339369989,1727495454899,-966.61,0.00012899,2]
[339369990,1727495454908,-966.61,0.00012899,2]
[339369991,1727495454918,-966.61,0.00012899,2]
[339369992,1727495454927,-966.61,0.00012899,2]
[339369993,1727495454937,-966.61,0.00012899,2]
[339369994,1727495454946,-966.7978163,0.00012899,2]
[339369995,1727495454958,-628.6,0.00012899,2]
[339369996,1727495454967,-628.6,0.00012899,2]
[339369997,1727495454977,-628.6,0.00012899,2]
[339369998,1727495454987,-628.6,0.00012899,2]
[339369999,1727495454997,-628.6,0.00012899,2]
[339370000,1727495455008,-628.6,0.00012899,2]
[339370001,1727495455017,-628.6,0.00012899,2]
[339370002,1727495455027,-628.6,0.00012899,2]
[339370003,1727495455039,-628.67669703,0.00012899,2]
[339370004,1727495455048,-500.0,0.000129,2]
[339370005,1727495455059,-2500.0,0.000129,2]
[339370006,1727495455068,-4806.2550959,0.000129,2]
[339370007,1727495455078,-199.98267386,0.000129,2]
[339370008,1727495455087,-670.61390682,0.000129,2]
[339370009,1727495455097,-1500.0,0.00012915,2]
[339370010,1727495455106,-150.0,0.00012945,2]
[339370011,1727495455192,-150.0,0.00012946,2]
[339370012,1727495455201,-150.0,0.00012947,2]
[339370013,1727495455210,-150.0,0.00012948,2]
[339370014,1727495455219,-500.0,0.00012973,2]
[339370015,1727495455229,-500.0,0.00012973,2]
[339370016,1727495455238,-754.6244309,0.00012991,2]
[339370017,1727495455247,-660.1799151,0.00012991,2]
[339370018,1727495455256,-565.7353992,0.00012991,2]
[339370019,1727495455265,-471.2908834,0.00012991,2]
[339370020,1727495455275,-376.8463676,0.00012991,2]
[339370021,1727495455284,-151.17342461,0.00012995,2]
[339370022,1727495455293,-500.0,0.00012999,2]
[339370023,1727495455303,-168.5655871,0.00012999,2]
[339370024,1727495455312,-500.0,0.00012999,2]
[339370025,1727495455321,-211.30469908,0.00012999,2]
[339370026,1727495455330,-1190.94829437,0.00012999,2]
[339370027,1727495455340,-1000.0,0.00012999,2]
[339370028,1727495455350,-150.0,0.00012999,2]
[339370029,1727495455360,-500.0,0.00012999,2]
[339370030,1727495455369,-500.0,0.00012999,2]
[339370031,1727495455379,-500.0,0.00012999,2]
[339370032,1727495455388,-500.0,0.00012999,2]
[339370033,1727495455397,-500.0,0.00012999,2]
[339370034,1727495455407,-500.0,0.00012999,2]
[339370035,1727495455416,-500.0,0.00012999,2]
[339370036,1727495455426,-500.0,0.00012999,2]
[339370037,1727495455440,-500.0,0.00012999,2]
[339370038,1727495455459,-500.0,0.00012999,2]
[339370039,1727495455470,-500.0,0.00012999,2]
[339370040,1727495455479,-516.32694423,0.00012999,2]
[339370041,1727495455489,-500.0,0.00012999,2]
[339370042,1727495455499,-500.0,0.00012999,2]
[339370043,1727495455508,-500.0,0.00012999,2]
[339370044,1727495455517,-500.0,0.00012999,2]
[339370045,1727495455526,-500.0,0.00012999,2]
[339370046,1727495455536,-557.95742637,0.00012999,2]
[339370047,1727495455545,-26525.41,0.00012999,2]
[339370048,1727495455554,-26525.41,0.00012999,2]
[339370049,1727495455564,-26525.41,0.00012999,2]
[339370050,1727495455575,-26525.41,0.00012999,2]
[339370051,1727495455585,-26525.41,0.00012999,2]
[339370052,1727495455595,-26525.41,0.00012999,2]
[339370053,1727495455604,-24961.1614256,0.00012999,2]
[339370054,1727495455752,-435.93874686,0.00012999,2]
[339370056,1727495756603,967.09,9.976e-05,2]
[339370058,1727496033342,150.5,0.0001111,2]
[339370059,1727496129242,171.43,0.00010959,2]
[339370060,1727496281461,989.74,9.591e-05,2]
[339370061,1727496361838,1050.0,0.00011,2]
[339370100,1727496632296,-500.0,0.00011164,2]
[339370101,1727496632311,-67.14,0.00011164,2]
[339370102,1727496632322,-312.02099594,0.00011164,2]
[339370103,1727496632402,-120.83900406,0.00011164,2]
[339370104,1727496632411,-151.34568314,0.00011164,2]
[339370108,1727496638573,-348.65431686,0.00011164,2]
[339370109,1727496638583,-1362.07,0.00011392,2]
[339370110,1727496638593,-250.0,0.00011403,2]
[339370111,1727496638603,-391.37,0.00011459,2]
[339370112,1727496638612,-72.90568313,0.00011461,2]
[339370113,1727496638623,-107.17431687,0.00011461,2]
[339370114,1727496638633,-250.0,0.00011474,2]
[339370115,1727496638642,-250.0,0.00011483,2]
[339370116,1727496638651,-192.98,0.00011506,2]
[339370117,1727496638661,-268.86316631,0.00011514,2]
[339370118,1727496638672,-31.13683369,0.00011514,2]
[339370119,1727496638681,-5093.60558694,0.00011515,2]
[339370120,1727496638785,-1002.42417311,0.00011515,2]
[339370144,1727496640364,-5693.91282217,0.00011515,2]
[339370148,1727496643513,-655.10269601,0.00011515,2]
[339370149,1727496643525,-416.555001,0.00011515,2]
[339370160,1727496646336,-4269.21972077,0.00011515,2]
[339370161,1727496646346,-499.99,0.00011515,2]
[339370162,1727496646356,-365.76,0.00011525,2]
[339370163,1727496646366,-1000.0,0.00011556,2]
[339370164,1727496646375,-1024.83,0.00011662,2]
[339370165,1727496646386,-9045.64,0.00011777,2]
[339370166,1727496646395,-989.74,0.00011855,2]
[339370167,1727496646404,-1362.07,0.00011962,2]
[339370168,1727496646414,-346.21,0.00012046,2]
[339370169,1727496646423,-1024.83,0.00012245,2]
[339370170,1727496646432,-1250.0,0.000123,2]
[339370171,1727496646442,-150.0,0.00012341,2]
[339370172,1727496646451,-933.0,0.00012342,2]
[339370173,1727496646460,-1904.0,0.00012342,2]
[339370174,1727496646469,-554.0,0.00012342,2]
[339370175,1727496646478,-807.0,0.00012342,2]
[339370176,1727496646487,-1911.0,0.00012342,2]
[339370177,1727496646496,-3349.0,0.00012342,2]
[339370178,1727496646506,-3327.908,0.00012342,2]
[339370179,1727496646515,-150.0,0.00012342,2]
[339370180,1727496646524,-5869.0,0.00012342,2]
[339370181,1727496646534,-167.5,0.00012445,2]
[339370182,1727496646544,-169.14,0.00012445,2]
[339370183,1727496646553,-448.0,0.00012509,2]
[339370184,1727496646564,-1263.0,0.00012509,2]
[339370185,1727496646573,-1296.0,0.00012509,2]
[339370186,1727496646583,-1362.07,0.00012531,2]
[339370187,1727496646591,-500.0,0.00012534,2]
[339370188,1727496646601,-400.574,0.00012678,2]
[339370189,1727496646610,-167.238,0.00012678,2]
[339370190,1727496646619,-500.0,0.00012747,2]
[339370191,1727496646629,-7459.37257568,0.00012776,2]
[339370192,1727496646649,-652.49623306,0.00012776,2]
[339370193,1727496646660,-3082.25587047,0.00012776,2]
[339370194,1727496646671,-1568.90122582,0.00012776,2]
[339370195,1727496646682,-980.19688546,0.00012776,2]
[339370196,1727496646693,-6239.81084315,0.00012776,2]
[339370200,1727496811562,1025.68,0.00010024,2]
[339370201,1727496823215,150.0,0.0001111,2]
[339370202,1727496901915,177.76,0.00010959,2]
[339370203,1727496932819,1850.0,0.000126,15]
[339370204,1727496964296,-500.0,0.00011164,2]
[339370205,1727496964318,-600.0,0.00011164,2]
[339370206,1727496964344,-500.0,0.00011164,2]
[339370207,1727496964365,-5546.36,0.00011908,2]
[339370208,1727496964386,-271.61,0.00011923,2]
[339370209,1727496964408,-250.0,0.0001196,2]
[339370210,1727496964430,-1000.0,0.00011971,2]
[339370211,1727496964457,-1332.03,0.00011976,2]
[339370212,1727496981501,1000.0,0.00015,30]
[339370214,1727497426234,974.39,9.811e-05,2]
[339370215,1727497519423,2393.20279283,9e-05,2]
[339370216,1727497520036,156.77,0.00010959,2]
[339370217,1727497554602,19227.63226471,6.94e-05,2]
[339370218,1727497567696,175.39251921,0.00011,2]
[339370257,1727497719522,150.0,0.0001111,2]
[339370284,1727497831532,-553.30865697,0.00011164,2]
[339370285,1727497831542,-45.66318736,0.00011164,2]
[339370286,1727497831554,-454.33681264,0.00011164,2]
[339370287,1727497831564,-250.0,0.00011599,2]
[339370288,1727497831573,-300.0,0.00011649,2]
[339370289,1727497831583,-150.0,0.00011649,2]
[339370290,1727497831592,-345.66318736,0.0001165,2]
[339370291,1727497831652,-542.67878054,0.0001165,2]
[339370292,1727497831664,-261.39657885,0.0001165,2]
[339370293,1727497831675,-3831.16040795,0.0001165,2]
[339370294,1727497831716,-1974.8225,0.0001165,2]
[339370295,1727497831775,-792.5901174,0.0001165,2]
[339370296,1727497831787,-2922.2,0.0001165,2]
[339370297,1727497831798,-5045.81686439,0.0001165,2]
[339370298,1727497831809,-2613.10872722,0.0001165,2]
[339370299,1727497831820,-543.45479166,0.0001165,2]
[339370300,1727497837662,-929.00886194,0.0001165,2]
[339370301,1727497837675,-6671.76743209,0.0001165,2]
[339370302,1727497837703,-34424.6117506,0.0001165,2]
[339370303,1727497837713,-250.0,0.00011673,2]
[339370304,1727497837722,-271.61,0.00011707,2]
[339370305,1727497837731,-250.0,0.00011734,2]
[339370306,1727497837741,-200.0,0.00011763,2]
[339370307,1727497837751,-3710.15,0.00011793,2]
[339370308,1727497837760,-443.54,0.00011823,2]
[339370309,1727497837769,-6316.93457894,0.00011976,2]
[339370310,1727497837778,-974.39,0.00012075,2]
[339370311,1727497837787,-1250.0,0.000123,2]
[339370312,1727497837796,-3710.15,0.00012383,2]
[339370313,1727497837805,-284.25484156,0.00012386,2]
[339370314,1727497837815,-168.91,0.00012445,2]
[339370315,1727497837824,-1904.0,0.00012508,2]
[339370316,1727497837838,-554.0,0.00012508,2]
[339370317,1727497837847,-1911.0,0.00012508,2]
[339370318,1727497837856,-3349.0,0.00012508,2]
[339370319,1727497837866,-807.0,0.00012508,2]
[339370320,1727497837875,-150.0,0.00012508,2]
[339370321,1727497837885,-757.169,0.00012508,2]
[339370322,1727497837895,-448.0,0.00012508,2]
[339370323,1727497837905,-152.86601122,0.00012584,2]
[339370324,1727497837915,-339.788,0.00012584,2]
[339370325,1727497837925,-5611.8998,0.00012584,2]
[339370326,1727497837934,-152.86601122,0.00012624,2]
[339370327,1727497837944,-152.86601122,0.00012663,2]
[339370328,1727497837953,-438.168,0.0001268,2]
[339370329,1727497837963,-163.446,0.0001268,2]
[339370330,1727497837972,-1358.9622,0.00012684,2]
[339370331,1727497837981,-10018.0454,0.00012684,2]
[339370332,1727497837990,-152.86601122,0.00012703,2]
[339370333,1727497838000,-255.0,0.0001272,2]
[339370334,1727497838009,-152.86601122,0.00012742,2]
[339370335,1727497838019,-1303.7149,0.00012776,2]
[339370336,1727497838030,-1563.7124,0.00012776,2]
[339370337,1727497838039,-597.8608,0.00012776,2]
[339370338,1727497838048,-152.86601122,0.00012782,2]
[339370339,1727497838058,-420.0,0.00012792,2]
[339370340,1727497838067,-152.86601122,0.00012821,2]
[339370341,1727497838076,-152.86601122,0.00012861,2]
[339370342,1727497838085,-154.2,0.00012866,2]
[339370343,1727497838095,-180.0,0.00012867,2]
[339370344,1727497838104,-2307.32363894,0.0001287,7]
[339370346,1727497838113,-544.64627786,0.0001287,2]
[339370348,1727497838122,-500.0,0.00012873,2]
[339370350,1727497838132,-319687.04807448,0.00012876,2]
[339370351,1727497838141,-343.19026556,0.00012876,2]
[339370352,1727497838151,-500.0,0.00012876,2]
[339370353,1727497838160,-500.0,0.00012876,2]
[339370354,1727497838169,-500.0,0.00012876,2]
[339370355,1727497838178,-500.0,0.00012876,2]
[339370356,1727497838187,-573.42104948,0.00012876,2]
[339370357,1727497838196,-500.0,0.00012876,2]
[339370358,1727497838205,-500.0,0.00012876,2]
[339370359,1727497838214,-500.0,0.00012876,2]
[339370360,1727497838223,-500.0,0.00012876,2]
[339370362,1727497838232,-500.0,0.00012876,2]
[339370364,1727497838241,-500.0,0.00012876,2]
[339370365,1727497838250,-500.0,0.00012876,2]
[339370366,1727497838259,-500.0,0.00012876,2]
[339370367,1727497838268,-500.0,0.00012876,2]
[339370368,1727497838277,-500.0,0.00012876,2]
[339370369,1727497838287,-500.0,0.00012876,2]
[339370370,1727497838295,-503.67744802,0.00012876,2]
[339370371,1727497838305,-500.0,0.00012876,2]
[339370372,1727497838314,-528.84585795,0.00012876,2]
[339370373,1727497838323,-500.0,0.00012876,2]
[339370374,1727497838332,-500.0,0.00012876,2]
[339370375,1727497838341,-500.0,0.00012876,2]
[339370376,1727497838350,-500.0,0.00012876,2]
[339370377,1727497838359,-500.0,0.00012876,2]
[339370378,1727497838369,-500.0,0.00012876,2]
[339370379,1727497838379,-520.19231959,0.00012876,2]
[339370380,1727497838388,-500.0,0.00012876,2]
[339370381,1727497838398,-510.5,0.00012876,2]
[339370382,1727497838407,-3509.56,0.00012876,2]
[339370383,1727497838416,-4147.9,0.00012876,2]
[339370384,1727497838426,-1976.11,0.00012876,2]
[339370385,1727497838435,-500.0,0.00012876,2]
[339370386,1727497838445,-18835.85,0.00012876,2]
[339370387,1727497838455,-18835.85,0.00012876,2]
[339370388,1727497838466,-154.2,0.0001289,2]
[339370389,1727497838475,-154.2,0.0001289,2]
[339370390,1727497838485,-154.2,0.0001289,2]
[339370391,1727497838494,-154.2,0.0001289,2]
[339370392,1727497838503,-154.2,0.0001289,2]
[339370393,1727497838512,-500.0,0.00012896,2]
[339370394,1727497838521,-2000.0,0.00012896,2]
[339370395,1727497838530,-431.41049964,0.00012898,2]
[339370396,1727497838539,-500.0,0.00012898,2]
[339370397,1727497838549,-298.80052346,0.00012898,2]
[339370398,1727497838558,-339.84401184,0.00012898,2]
[339370399,1727497838567,-500.0,0.00012898,2]
[339370400,1727497838577,-500.0,0.00012898,2]
[339370401,1727497838585,-500.0,0.00012898,2]
[339370402,1727497838595,-501.6572206,0.00012898,2]
[339370403,1727497838604,-500.0,0.00012898,2]
[339370404,1727497838613,-500.0,0.00012898,2]
[339370405,1727497838622,-500.0,0.00012898,2]
[339370406,1727497838631,-500.0,0.00012898,2]
[339370407,1727497838640,-500.0,0.00012898,2]
[339370408,1727497838652,-152.6526076,0.00012898,2]
[339370409,1727497838661,-167.3809941,0.00012899,2]
[339370410,1727497838670,-500.0,0.00012899,2]
[339370411,1727497838679,-317.99591097,0.00012899,2]
[339370412,1727497838688,-500.0,0.00012899,2]
[339370413,1727497838697,-284.51618218,0.00012899,2]
[339370414,1727497838708,-500.0,0.00012899,2]
[339370415,1727497838718,-150.0,0.000129,2]
[339370416,1727497838727,-167.38099409,0.000129,2]
[339370417,1727497838737,-152.86601122,0.000129,2]
[339370418,1727497838748,-1433011.32302364,0.000129,2]
[339370419,1727497838762,-537.0,0.000129,2]
[339370420,1727497838774,-501.34997255,0.000129,2]
[339370421,1727497838793,-5906.63080696,0.000129,2]
[339370422,1727497838804,-1554.54118635,0.000129,2]
[339370423,1727497838815,-990.63368508,0.000129,2]
[339370424,1727497839579,-106145.52070486,0.000129,2]
[339370425,1727497839590,-961.27203814,0.000129,2]